Cogmind - Beta 13 @@@ ROGUE MODE // 2024.06.21 @ 01:05:23 Player: JackZewap Result: Destroyed by 0U-Y8V(R) with Subdweller Beam Cannon Performance ------------- Evolutions (0) 0 Regions Visited (2) 400 Robots Destroyed (38) 190 Value Destroyed (846) 846 Prototype IDs (3) 60 Alien Tech Used (0) 0 Bonus (0) 0 TOTAL SCORE: 1496 Bonus ------- None Cogmind --------- Core Integrity 0/250 Matter 235/300 Energy 278/280 System Corruption 0% Temperature Cool (9) Movement Treading (320) Ox2 Location -10/Subcaves Parts ------- > --- POWER (1) -------- Heavy Ion Engine > --- PROPULSION (2) --- Light Treads > --- UTILITY (2) ------ High-capacity Storage Unit Hardened Light Armor Plating > --- WEAPON (2) ------- Light Cannon Mace > --- INVENTORY (20) --- Heavy Ion Engine Makeshift Power Source Compact Wheel Large Matter Pod (150) High-capacity Matter Pod (200) Weight Redist. System Visual Processing Unit Improved Terrain Scanner Makeshift Terrain Scan Processor Seismic Detector Hardened Light Armor Plating Scrap Shield Hacking Suite Hacking Suite Hacking Suite Particle Gun Datajack Peak State ------------ > --- POWER ------------ Heavy Ion Engine > --- PROPULSION ------- Light Treads Light Treads > --- UTILITY ---------- Improved Heat Sink High-capacity Storage Unit > --- WEAPON ----------- Particle Gun Particle Gun > --- INVENTORY -------- Heavy Ion Engine Makeshift Power Source Light Treads Compact Wheel Large Matter Pod High-capacity Matter Pod Weight Redist. System Structural Scanner Visual Processing Unit Improved Terrain Scanner Makeshift Terrain Scan Processor Seismic Detector Hardened Light Armor Plating Hardened Light Armor Plating Hacking Suite Hacking Suite Hacking Suite Light Cannon Datajack Mace [Rating: 17] Favorites ----------- Power Heavy Ion Engine Engine Heavy Ion Engine Propulsion Light Treads Treads Light Treads Utility High-capacity Storage Unit Device Improved Heat Sink Storage High-capacity Storage Unit Protection Hardened Light Armor Plating Weapon Particle Gun Energy Gun Particle Gun Ballistic Gun Light Assault Rifle Ballistic Cannon Light Cannon Impact Weapon Mace Build | -11 -10 -10 ------- Run | Yrd Mat Sub Slots Evolved . | . . . Power . | . . . Propulsion . | . . . Utility . | . . . Weapon . | . . . Parts Attached 40 | 7 25 8 Power 3 | 1 2 . Engine 3 | 1 2 . Core . | . . . Reactor . | . . . Propulsion 9 | 2 6 1 Treads 9 | 2 6 1 Leg . | . . . Wheel . | . . . Hover . | . . . Flight . | . . . Utility 13 | 2 6 5 Device 6 | 1 3 2 Storage 3 | 1 2 . Processor . | . . . Hackware . | . . . Protection 4 | . 1 3 Artifact . | . . . Weapon 15 | 2 11 2 Energy Gun 8 | 1 7 . Energy Cannon . | . . . Ballistic Gun 3 | 1 2 . Ballistic Cannon 1 | . . 1 Launcher . | . . . Special Weapon . | . . . Impact Weapon 3 | . 2 1 Slashing Weapon . | . . . Piercing Weapon . | . . . Special Melee Weapon . | . . . Unidentified Prototypes 1 | . 1 . Parts Lost 4 | . . 4 Power . | . . . Propulsion 2 | . . 2 Utility 2 | . . 2 Weapon . | . . . Highest Loss Streak 3 | . . 3 To Critical Strikes . | . . . Average Slot Usage (%) 99 | . 99 100 Engine 14 | . 14 14 Treads 28 | . 28 28 Device 11 | . 11 11 Storage 14 | . 14 14 Protection 2 | . 2 2 Energy Gun 18 | . 24 9 Ballistic Gun 2 | . 3 . Ballistic Cannon 4 | . . 10 Impact Weapon 3 | . . 8 Naked Turns . | . . . Heaviest Build 59 | 13 55 59 Greatest Support 40 | 40 40 40 Greatest Overweight (x) 1 | 1 1 1 Average Overweight (x) . | . . 1 Largest Inventory Capacity 20 | 8 20 20 Average Capacity 15 | 7 13 20 Most Carried 20 | 5 18 20 Average Carried 13 | 2 11 19 Final Capacity 20 | 8 20 20 Final Carried 18 | 5 18 18 Class Distribution -------------------- 100% | Mutant Dominant Class ---------------- Mutant | -10/Materials Mutant | -10/Subcaves Resources | -11 -10 -10 ----------- Run | Yrd Mat Sub Matter Collected 1051 | 305 553 193 Remotely . | . . . Salvage Created 1164 | 117 787 260 Parts 90 | 11 64 15 Haulers Intercepted 2 | . 2 . Recyclers Shooed . | . . . Parts Field Recycled . | . . . Retrieved Matter . | . . . Parts Self-Destructed 10 | . . 10 Prevented . | . . . Kills | -11 -10 -10 ------- Run | Yrd Mat Sub Combat Hostiles Destroyed 17 | . 11 6 Guns 16 | . 11 5 Cannons 1 | . . 1 Classes Destroyed 10 | 3 5 2 Worker 4 | 1 3 . Builder 4 | . 4 . Tunneler 3 | 2 1 . Hauler 2 | . 2 . Recycler 1 | 1 . . Operator 4 | . 4 . Watcher 3 | . 3 . Grunt 13 | . 11 2 Sentry 1 | . . 1 Subdweller 3 | . . 3 Best Kill Streak 2 | 2 2 2 Combat Bots Only 2 | . 2 2 Max Kills in Single Turn 1 | 1 1 1 Gunslinging . | . . . Exploded . | . . . Melee . | . . . Uniques/NPCs Destroyed . | . . . Combat | -11 -10 -10 -------- Run | Yrd Mat Sub Hostile Shots Fired 100 | . 55 45 Missed 31 | . 16 15 Damage Taken 1254 | . 536 718 Core 259 | . 90 169 Absorbed by Shields . | . . . Core Remaining (%) 100 | 100 . . Volleys Fired 131 | 11 89 31 Largest 2 | 2 2 2 Hottest 130 | 60 130 130 Shots Fired 244 | 22 176 46 Gun 223 | 22 176 25 Cannon 21 | . . 21 Launcher . | . . . Special . | . . . Kinetic 94 | 11 62 21 Thermal 150 | 11 114 25 Explosive . | . . . Electromagnetic . | . . . Robot Hit Streak 14 | 4 14 10 Robot Miss Streak 3 | 1 3 1 Penetration Max . | . . . Secondary Targets . | . . . Shots Hit Robots 168 | 16 122 30 Core Hits 68 | 5 51 12 Critical Kills . | . . . Critical Parts Destroyed 1 | 1 . . Critical Strikes 7 | 1 3 3 Burn 5 | . 3 2 Destroy 1 | 1 . . Blast 1 | . . 1 Melee Attacks 13 | . 3 10 Impact 13 | . 3 10 Slashing . | . . . Piercing . | . . . Sneak Attacks . | . . . Combat Hostiles . | . . . Follow-up Attacks . | . . . Damage Inflicted 2120 | 169 1480 471 Guns 1974 | 169 1480 325 Cannons 146 | . . 146 Explosions . | . . . Melee . | . . . Ramming . | . . . Kinetic 583 | 70 367 146 Thermal 1537 | 99 1113 325 Explosive . | . . . Electromagnetic . | . . . Impact . | . . . Slashing . | . . . Piercing . | . . . Highest Corruption . | . . . Average Corruption . | . . . Corruption Purged . | . . . Corruption Blocked . | . . . Overload Shots . | . . . Overflow Damage . | . . . Projectiles . | . . . Explosions . | . . . Melee . | . . . Knockbacks 1 | . . 1 Impact . | . . . Kinetic 1 | . . 1 Secondary . | . . . Self-Inflicted Damage . | . . . Shots . | . . . Rammed . | . . . Targets Rammed . | . . . Kicked . | . . . Crushed . | . . . Highest Temperature 286 | 40 286 17 Average Temperature 59 | 20 64 9 Received Heat Transfer 423 | . 279 144 Siege Activations . | . . . Robots Corrupted . | . . . Combat Hostiles . | . . . Parts Fried . | . . . Impact Corruptions . | . . . Robots Melted . | . . . Combat Hostiles . | . . . Parts Melted 6 | . 5 1 Heat Transferred 4018 | 225 2868 925 Parts Sabotaged . | . . . Parts Stolen . | . . . Parts Stripped . | . . . Power Chain Reactions . | . . . Alert | -11 -10 -10 ------- Run | Yrd Mat Sub Peak Influence 163 | 20 163 . Initial 13 | . 13 . Average 44 | 7 46 . Maximum Alert Level . | . . . Low Security (%) 100 | 100 100 . Level 1 . | . . . Level 2 . | . . . Level 3 . | . . . Level 4 . | . . . Level 5 . | . . . High Security . | . . . Max Security . | . . . Squads Dispatched 5 | . 5 . Investigation 1 | . 1 . Extermination . | . . . Reinforcement 4 | . 4 . Assault . | . . . Garrison . | . . . Intercept . | . . . Searches Triggered . | . . . Construction Impeded . | . . . Haulers Reinforced . | . . . Active Scanning Responses . | . . . Cargo Convoy Interrupts . | . . . Stealth | -11 -10 -10 --------- Run | Yrd Mat Sub Distress Signals 2 | . 2 . Communications Jammed . | . . . Distress Signals . | . . . Times Spotted 31 | . 23 8 Peak Tracking Total 4 | . 4 2 Tactical Retreats 1 | . . 1 Traps | -11 -10 -10 ------- Run | Yrd Mat Sub Traps Triggered 6 | . 4 2 Indirectly . | . . . Trap Hack Attempts . | . . . Triggered . | . . . Disarmed . | . . . Reprogrammed . | . . . Reused . | . . . Traps Extracted . | . . . Installed . | . . . Triggered . | . . . Machines | -11 -10 -10 ---------- Run | Yrd Mat Sub Machines Disabled 2 | . 2 . Max in Single Turn 1 | . 1 . Machines Repaired . | . . . Machines Dismantled . | . . . Machines Sabotaged . | . . . Overloaded Fab Kills . | . . . Hacking | -11 -10 -10 --------- Run | Yrd Mat Sub Machines Accessed 4 | . 4 . Terminals 4 | . 4 . Fabricators . | . . . Repair Stations . | . . . Recycling Units . | . . . Scanalyzers . | . . . Garrison Access . | . . . Total Hacks 9 | . 9 . Successful 5 | . 5 . Failed 4 | . 4 . Catastrophic 1 | . 1 . Database Lockouts . | . . . Manual 8 | . 8 . Terminals 9 | . 9 . Fabricators . | . . . Repair Stations . | . . . Recycling Units . | . . . Scanalyzers . | . . . Garrison Access . | . . . Terminal Hacks 2 | . 2 . Robot Analysis 1 | . 1 . Prototype ID Bank 1 | . 1 . Fabricator Hacks . | . . . Repair Station Hacks . | . . . Recycling Unit Hacks . | . . . Scanalyzer . | . . . Garrison Access Hacks . | . . . Unauthorized Hacks 3 | . 3 . Terminals 3 | . 3 . Botnet 3 | . 3 . Fabricators . | . . . Repair Stations . | . . . Recycling Units . | . . . Scanalyzers . | . . . Garrison Access . | . . . Data Cores Recovered . | . . . Used . | . . . Hacking Detections 4 | . 4 . Full Trace Events 2 | . 2 . Feedback Events . | . . . Feedback Blocked . | . . . Robot Schematics Acquired . | . . . Robots Built . | . . . Authchips . | . . . Time . | . . . Total Robot Build Rating . | . . . Part Schematics Acquired . | . . . Parts Built . | . . . Authchips . | . . . Time . | . . . Total Part Build Rating . | . . . Parts Repaired . | . . . Time . | . . . Parts Recycled . | . . . Recycled Matter . | . . . Retrieved Matter . | . . . Retrieved Components . | . . . Parts Scanalyzed . | . . . Part Schematics Acquired . | . . . Parts Damaged . | . . . Bothacking | -11 -10 -10 ------------ Run | Yrd Mat Sub Used RIF Installer . | . . . Robots Hacked . | . . . Non-combat . | . . . Combat . | . . . Robot Hacks Applied . | . . . Relay Couplers Released . | . . . Fabnet Peak Effective % . | . . . Robots Rewired . | . . . Allies Hacked . | . . . Hacks Repelled . | . . . Allies | -11 -10 -10 -------- Run | Yrd Mat Sub Total Allies . | . . . Largest Group . | . . . Highest-Rated Group . | . . . Highest-Rated Ally . | . . . Total Orders . | . . . Ally Attacks . | . . . Total Damage . | . . . Kills . | . . . Allies Corrupted . | . . . Allies Melted . | . . . Intel | -11 -10 -10 ------- Run | Yrd Mat Sub Robot Analysis Total 1 | . 1 . Derelict Logs Recovered . | . . . Drone Launches . | . . . Drone Recoveries . | . . . Exploration | -11 -10 -10 ------------- Run | Yrd Mat Sub Turns Passed 5133 | 204 3055 1874 Spaces Moved 1873 | 99 1122 652 Core 4 | 4 . . Treads 1869 | 95 1122 652 Legs . | . . . Wheels . | . . . Hover . | . . . Flight . | . . . Fastest Speed 50 | 50 160 240 Average Speed 212 | 156 201 240 Slowest Speed 240 | 160 240 240 Overloaded Moves . | . . . Propulsion Burnouts . | . . . Robots Hopped . | . . . Cave-ins Triggered . | . . . Exploration Rate (%) 52 | 9 99 48 Regions Visited 2 Branch Regions 1 Pre-discovered Areas . | . . . Known Exits Taken . | . . . Unknown Exits Taken 2 | 1 1 . Scrap Searched 10 | . . 10 Spaces Dug 3 | . 2 1 Terrain Destroyed 3 | . 2 1 Melee 3 | . 2 1 Projectile . | . . . AOE . | . . . Terrain Rammed . | . . . Walls Destroyed . | . . . Machines Disabled . | . . . Actions | -11 -10 -10 --------- Run | Yrd Mat Sub Total 2776 | 125 1756 895 Wait 667 | 4 473 190 Move 1871 | 98 1121 652 Hop . | . . . Pick Up 29 | 5 21 3 Fast Attach 17 | 7 10 . Attach 3 | . . 3 Detach 1 | . 1 . Swap 20 | . 15 5 Drop 24 | . 23 1 Fire 131 | 11 89 31 Melee 13 | . 3 10 Ram . | . . . Kick . | . . . Crush . | . . . Escape Stasis . | . . . Rewire . | . . . Trap . | . . . Miscellaneous . | . . . Route ------- -11/Scrapyard -10/Materials (discovered 6 exits: [*Mat x3] / [*Min x2] / [*Sub]) -10/Subcaves History --------- Turn | Location | Event 11 | -11/Scrapyard | Discovered new exit (range 14) 205 | -11/Scrapyard | Entered Materials 303 | -10/Materials | Build established: Mutant 489 | -10/Materials | Discovered new exit (range 8) 983 | -10/Materials | Discovered new exit (range 10) 1784 | -10/Materials | Discovered new exit (range 7) 2284 | -10/Materials | Discovered new exit (range 16) 2589 | -10/Materials | Discovered new exit (range 7) 3175 | -10/Materials | Discovered new exit (range 15) 3260 | -10/Materials | Entered Subcaves 3548 | -10/Subcaves | Shifting Twisted Machinery released Battle Rifle 3550 | -10/Subcaves | Shifting Twisted Machinery released Sub. Machine Gun 3552 | -10/Subcaves | Shifting Twisted Machinery released Sub. Machine Gun 3570 | -10/Subcaves | Shifting Twisted Machinery released Riot Gun 3675 | -10/Subcaves | Disturbed a concealed Subdweller 3707 | -10/Subcaves | Core integrity fell below 50% 4980 | -10/Subcaves | Shifting Twisted Machinery released Sub. Monowheel 4981 | -10/Subcaves | Shifting Twisted Machinery released Sub. Monowheel 5131 | -10/Subcaves | Core integrity fell below 20% 5134 | -10/Subcaves | Destroyed by 0U-Y8V(R) with Subdweller Beam Cannon Last Messages --------------- 03809_ Subatomizers dissect the Sub. Beam Cannon. 04105_ A4-GQP(R) Sub. Power Source blasted off. 04107_ A4-GQP(R) destroyed. 04138_ Acquired 4 matter. 04176_ Acquired 40 matter. 04687_ Searching scrap... 04687_ Found Riot Gun. 04687_ Found 35 Matter. 04713_ Triggered Piercing Trap. 04713_ Spikes shoot up from the floor. 04713_ Critical hit (Impale). 04716_ Searching scrap... 04716_ Found Sub. Power Source. 04716_ Found Flamer. 04716_ Found 13 Matter. Sub. Monowheel falls loose from the Twisted Machinery. 05116_ Lgt. Treads destroyed. 05123_ 0U-Y8V(R) knocked back. 05130_ Lgt. Treads destroyed. 05130_ Structural Scanner destroyed. Map ----- +----------------------------------------------------+ | ?????????????????????????????????????????????????? | | ?????????????????????????????????????????????????? | | #????????????????????????????????????????????????? | | ##???????????????????????????????????????????????? | | ###??????????????????????????????????????????????? | | ####?????????????????????????????????????????????? | | ###?????????????????????????????????????????????? | | ##?????????????????????????????????????????????? | | ###?????????????????????????????????????????????? | | ##??????????????????????????????????????????????? | | ###??????????????????????????????????????????????? | | ###??????????????????????????????????????????????? | | ##??????????????????????????????????????????????? | | ##??????????????? ##??????????????## ???????????? | | ###??????????????? ##????????????? ## ???????????? | | ###??????????????? ????????????? ??????????? | | ###???????????????## ??????????? ????????? | | ###???????????????### ??????????? ????????? | | ########??? ##### ?????????## ???????? | | #########?? #### ????????## ????????? | | ### ##### ## ????????# ##????????? | | #### #####?## ###????????? | | ##### ######## ## ??????? | | ###???????? #;#### ??????? | | ####???????????## ## ?????? | | # ### ????????????### @ %R% ??????? | | " ###??????????????## R #### ????????????? | | #" ###?????????? ######## %##### ????????????? | | " ##?????????####### ###### ###???????????????? | | #"" ###????????### ##### ####?????????????? | | "" ############# ## #####????????????? | | =" =############ ###????????????? | | " ### # # # ###???????????? | | """" ##### ##???????????? | | """"""" ##### ###??????????? | | # """"""" # # ## ### ##??????????? | | ###"""""################# ### ######??????????? | | #######################################??????????? | | ?#########??????????????###########??????????????? | | ?????????????????????????????????????????????????? | | ?????????????????????????????????????????????????? | | ?????????????????????????????????????????????????? | | ?????????????????????????????????????????????????? | | ?????????????????????????????????????????????????? | | ?????????????????????????????????????????????????? | | ?????????????????????????????????????????????????? | | ?????????????????????????????????????????????????? | | ?????????????????????????????????????????????????? | | ?????????????????????????????????????????????????? | | ?????????????????????????????????????????????????? | +----------------------------------------------------+ Best States ------------- Heat Dissipation 39 Energy Generation 14 Energy Capacity 280 Matter Stores 300 Matter Capacity 300 Sight Range 16 Terrain Scan Range 16 Terrain Scan Density 10 Armor Coverage 150 Evasion (%) 40 Recoil Reduction 2 Item Schematics ----------------- None Robot Schematics ------------------ None Fabricated ------------ Nothing Alien Tech Used ----------------- None Achievements -------------- None Challenges ------------ None Game ------ Seed GhostDirtyReconstructor Manual? 0 Play Time 00:17:54 Cumulative 89.2 hours Start 2024.06.21 @ 00:48:33 End 2024.06.21 @ 01:05:23 Sessions 1 Manual Loads 0 Difficulty Rogue Special Mode None Game No. 102 Rogue 96 Adventurer 6 Explorer 0 Win Type - Total 0 Types 0/0/0/0/0/0/0/0/0 Lore% 36 Gallery% 51 Achievement% 38 Wizard Run 0 Options --------- Layout 0 ASCII 0 Keyboard 1 Movement Numpad Keybinds 0 Fullscreen 0 Font 14/Smallcaps Map View 76x50 Zoom Use 0% Tactical HUD 1 Map Filters NONE Filters NONE Steam 1 RUN: 3466f93e-cb32-4e70-b42f-ce9d6ab96429